bitfinex/quotes_ETHUSD_20260126
["timestamp","ask_amount","ask_price","bid_price","bid_amount"]
[1769430045895,13.78926274,2911.5,2910.6,0.001]
[1769430046593,12.29578395,2911.3,2910.6,0.001]
[1769430050213,12.29578395,2911.3,2910.6,0.00019461]
[1769430051756,13.40521344,2911.1,2910.6,0.00019461]
[1769430057238,0.59629454,2912.3,2910.6,0.00019461]
[1769430057239,13.40521344,2912.1,2910.7,0.03107037]
[1769430057443,13.43953656,2912.0,2910.9,0.03107037]
[1769430057749,13.40521344,2912.3,2911.2,0.03107037]
[1769430059375,13.40521344,2912.1,2911.0,3.53631568]
[1769430059574,13.40521344,2912.1,2911.1,0.35363157]
[1769430060271,14.26370069,2912.1,2911.1,0.35363157]
[1769430061460,13.40521344,2912.1,2911.1,0.35363157]
[1769430061873,13.40721344,2912.1,2911.1,0.41905321]
[1769430063698,13.40721344,2912.1,2911.1,0.38798284]
[1769430063907,13.40521344,2911.9,2911.0,3.53631568]
[1769430064403,13.40521344,2911.7,2911.0,3.53631568]
[1769430065669,13.40521344,2911.5,2910.7,1.98476284]
[1769430067612,13.40521344,2911.5,2907.5,10.07089844]
[1769430067613,0.03107037,2910.6,2907.5,10.07089844]
[1769430067820,13.40521344,2909.9,2908.0,0.03107037]
[1769430068002,13.40521344,2909.5,2907.8,0.01726465]
[1769430068182,13.40521344,2909.5,2907.6,0.03107037]
[1769430068519,13.40521344,2909.3,2907.6,0.03107037]
[1769430068710,13.40521344,2909.1,2907.7,0.01727468]
[1769430069611,13.40521344,2909.1,2907.8,0.03107037]
[1769430069814,13.40521344,2909.1,2907.7,0.01727468]
[1769430070018,13.40521344,2909.1,2907.7,0.87704797]
[1769430070400,13.40521344,2909.1,2908.0,0.03107037]
[1769430070582,14.89426974,2909.1,2908.0,0.03107037]
[1769430070983,14.89426974,2909.1,2908.1,0.01727231]
[1769430071614,13.40521344,2909.4,2908.3,0.03107037]
[1769430072018,13.40521344,2909.4,2908.3,0.90794128]
[1769430072927,13.40521344,2909.7,2908.5,0.03107037]
[1769430073093,13.40521344,2909.7,2908.6,0.01725636]
[1769430073292,1.34052134,2909.6,2908.6,0.01725636]
[1769430074718,1.34052134,2909.6,2908.6,0.85951887]
[1769430074927,1.34052134,2909.6,2908.6,0.859519]
[1769430075229,1.34052134,2909.6,2908.5,0.90785812]
[1769430075527,1.34052134,2909.6,2908.6,0.85951129]
[1769430075733,1.34052134,2909.6,2908.6,0.43461478]
[1769430075929,1.34052134,2909.6,2908.6,1.29413113]
[1769430076805,1.34052134,2909.6,2908.6,1.2941242]
[1769430077004,13.40521344,2909.7,2908.6,0.87676637]
[1769430077411,13.40521344,2910.0,2908.8,0.03107037]
[1769430077599,0.0429568,2909.9,2908.8,0.03107037]
[1769430077799,13.44817024,2909.9,2908.8,0.03107037]
[1769430078138,13.40521344,2909.9,2908.8,0.03107037]
[1769430078311,1.38347961,2909.8,2908.8,0.03107037]
[1769430078623,1.38347961,2909.8,2908.8,0.89051263]
[1769430079217,1.38347961,2909.8,2908.8,0.89050602]
[1769430079534,12.39922564,2909.8,2908.8,0.89050602]
[1769430079833,12.35626737,2909.8,2908.8,0.89050602]
[1769430080631,0.04295975,2909.7,2908.8,0.89050602]
[1769430081301,12.35626737,2909.6,2908.5,3.46923843]
[1769430081525,12.35626737,2909.6,2908.6,0.85949152]
[1769430081737,12.35626737,2909.6,2908.7,1.29236049]
[1769430082334,12.35626737,2909.6,2908.7,1.29234087]
[1769430082533,28.563709,2909.5,2906.4,11.63120659]
[1769430082833,12.35626737,2908.2,2906.6,0.86011147]
[1769430083234,12.35626737,2908.2,2906.7,0.03107037]
[1769430084836,12.35626737,2908.2,2906.8,0.86005229]
[1769430085019,13.59189411,2908.1,2906.8,0.86005229]
[1769430085733,13.59189411,2908.1,2906.7,0.86006959]
[1769430085919,12.35626737,2907.9,2906.2,0.86022066]
[1769430086124,12.35626737,2907.9,2906.3,0.86017907]
[1769430086335,12.35626737,2907.7,2906.4,0.43010831]
[1769430086535,12.35626737,2907.7,2906.2,0.86021173]
[1769430086739,12.35626737,2907.7,2906.9,0.001]
[1769430087324,12.35626737,2907.7,2906.1,0.86025945]
[1769430087325,13.21606614,2907.7,2906.1,0.86025945]
[1769430087519,12.35626737,2907.7,2906.1,0.86025945]
[1769430088431,12.35626737,2907.7,2906.1,0.89132982]
[1769430088637,12.35626737,2907.5,2906.2,0.55408359]
[1769430089130,12.35626737,2907.5,2906.3,0.86020025]
[1769430089740,12.35626737,2907.5,2906.3,0.89127062]
[1769430093450,12.35626737,2907.8,2906.7,0.03107037]
[1769430093613,0.0429893,2907.7,2906.7,0.03107037]
[1769430093816,0.0429893,2907.7,2906.5,0.03107037]
[1769430093817,12.39925667,2907.7,2906.5,0.03107037]
[1769430094027,12.35626737,2907.7,2906.5,0.03107037]
[1769430094235,12.35626737,2907.7,2906.6,0.72]
[1769430094445,13.59189411,2907.7,2906.6,0.72]
[1769430094638,0.04299078,2907.6,2906.6,0.72]
[1769430095432,0.04299078,2907.6,2906.7,0.86008187]
[1769430095827,12.39925815,2907.6,2906.7,1.58008187]
[1769430096163,12.35626737,2907.6,2906.7,2.08214414]
[1769430096368,0.04299226,2907.5,2906.7,2.08214414]
[1769430096831,12.35626737,2907.6,2906.7,1.36214414]
[1769430097017,12.35626737,2907.6,2906.7,2.08214414]
[1769430097220,0.04299226,2907.5,2906.7,2.08214414]
[1769430097851,12.39925963,2907.5,2906.7,2.08214414]
[1769430098053,13.71975601,2907.5,2906.5,0.86012219]
[1769430098355,13.71975601,2907.5,2906.6,0.86010467]
[1769430098562,13.71975601,2907.5,2906.6,0.86010851]
[1769430098743,13.71975601,2907.5,2906.5,1.58012269]
[1769430099057,13.71975601,2907.5,2906.5,2.08220191]
[1769430099255,12.39926111,2907.4,2906.6,0.86008942]
[1769430099558,12.35626737,2907.4,2906.9,0.001]
[1769430099758,0.04299521,2907.3,2906.9,0.001]
[1769430100179,12.35826737,2907.4,2906.9,0.001]
[1769430101278,13.73064297,2907.4,2906.9,0.001]
[1769430109757,12.35826737,2907.4,2906.9,0.001]
[1769430109958,0.002,2907.4,2906.9,0.001]
[1769430111176,13.08716542,2907.4,2906.9,0.001]
[1769430113698,0.04299521,2907.3,2906.0,2.06864444]
[1769430113873,0.04299521,2907.3,2906.0,1.9293694]
[1769430113874,14.48416987,2907.2,2906.0,1.9293694]
[1769430114064,13.08516542,2907.0,2906.0,1.9293694]
[1769430114264,13.08516542,2907.0,2906.0,1.2083694]
[1769430115393,13.08516542,2906.8,2906.0,1.2083694]
[1769430115690,13.08516542,2906.8,2906.0,2.53362807]
[1769430116089,13.08516542,2906.8,2906.0,1.67334246]
[1769430116294,13.08516542,2906.8,2905.2,13.78192408]
[1769430116499,13.08516542,2906.8,2905.2,14.64243578]
[1769430116901,13.08516542,2906.6,2905.1,0.86053893]
[1769430117103,13.08516542,2906.6,2905.3,0.721]
[1769430117275,13.08516542,2906.4,2905.3,0.721]
[1769430117463,13.08516542,2906.4,2905.2,0.86052346]
[1769430117666,13.08516542,2906.4,2905.3,0.721]
[1769430118977,13.08516542,2906.4,2905.3,1.58147478]
[1769430119368,13.08516542,2906.4,2905.3,15.46369678]
[1769430119569,13.08516542,2906.4,2905.4,1.89057531]
[1769430120587,13.08516542,2906.4,2905.4,2.61157531]
[1769430120788,13.08516542,2906.4,2905.4,0.721]
[1769430121594,13.08516542,2906.4,2904.9,3.44241801]
[1769430121794,13.08516542,2906.4,2905.2,0.86052549]
[1769430122100,13.08516542,2906.4,2905.3,0.86047594]
[1769430122489,13.08516542,2906.4,2905.3,0.86049266]
[1769430122691,13.08516542,2906.2,2905.3,1.29076051]
[1769430125015,13.08516542,2906.2,2905.4,0.001]
[1769430125713,13.08516542,2906.5,2905.4,0.001]
[1769430126218,3.44177788,2907.2,2905.5,13.8679658]
[1769430126219,13.08516542,2906.8,2905.5,13.8679658]
[1769430126395,13.12816951,2906.7,2905.6,0.721]
[1769430126711,13.08516542,2906.7,2905.7,1.45889658]
[1769430126912,0.04300557,2906.6,2905.7,1.45889658]
[1769430127400,0.04300557,2906.6,2905.7,2.31926573]
[1769430127794,13.12817099,2906.6,2905.7,3.04027183]
[1769430128019,13.08516542,2906.6,2905.7,3.04027183]
[1769430128202,13.08516542,2906.6,2905.7,2.54077183]
[1769430128411,13.08516542,2906.6,2905.7,1.68039658]
[1769430128716,14.39368196,2906.6,2905.7,0.95939658]
[1769430128898,14.39368196,2906.6,2905.7,1.68039658]
[1769430130221,14.39368196,2906.6,2905.7,2.5407654]
[1769430130398,14.39368196,2906.6,2905.7,1.68039658]
[1769430130602,14.39368196,2906.6,2905.7,0.721]
[1769430130795,14.39368196,2906.6,2905.6,0.721]
[1769430131107,13.08516542,2906.4,2905.6,0.721]
[1769430131289,13.08516542,2906.4,2905.5,3.78]
[1769430131486,1.30851654,2906.6,2905.5,3.78]
[1769430131487,13.08516542,2906.2,2905.5,3.78]
[1769430131698,2.16862815,2906.6,2905.4,0.001]
[1769430131699,13.08516542,2906.0,2905.4,0.001]
[1769430133223,0.04301593,2905.9,2905.4,0.001]
[1769430133422,13.12818135,2905.9,2905.4,0.001]
[1769430133588,13.08516542,2905.9,2905.4,0.001]
[1769430135522,13.08516542,2905.7,2904.6,4.501]
[1769430135710,13.08516542,2905.7,2904.7,0.86067393]
[1769430136326,13.08516542,2905.7,2904.8,0.721]
[1769430137500,13.08516542,2905.7,2905.6,0.001]
[1769430137726,13.08516542,2905.7,2904.8,0.721]
[1769430138030,13.08516542,2905.7,2904.9,0.86061482]
[1769430138328,13.66681907,2906.2,2904.9,13.62327509]
[1769430139038,13.35722736,2906.0,2904.9,13.62327509]
[1769430140320,0.04301593,2905.9,2904.9,13.62327509]
[1769430140909,13.40024329,2905.9,2904.9,13.62327509]
[1769430141235,13.40024329,2905.9,2905.0,2.21131775]
[1769430141236,14.15129477,2905.9,2905.0,2.21131775]
[1769430142116,14.15129477,2905.9,2904.9,0.86061482]
[1769430142424,13.40024477,2905.8,2904.9,0.86061482]
[1769430142608,13.35722736,2905.8,2904.9,0.86061482]
[1769430144344,13.35722736,2905.8,2904.8,5.87694927]
[1769430145607,13.35722736,2905.6,2904.9,0.721]
[1769430145808,13.35722736,2905.6,2904.8,2.81794927]
[1769430146042,0.04302185,2905.5,2904.8,1.23632757]
[1769430146209,13.40024921,2905.5,2904.7,0.86065161]
[1769430146538,13.40024921,2905.5,2904.6,0.86069908]
[1769430146539,13.35722736,2905.5,2904.6,0.86069908]
[1769430146742,13.35722736,2905.5,2904.6,1.58169908]
[1769430147240,13.40025069,2905.4,2904.6,1.58169908]
[1769430147442,13.35722736,2905.4,2904.6,1.58169908]
[1769430147625,14.6929501,2905.4,2904.6,1.58169908]
[1769430147940,14.6929501,2905.4,2904.4,0.721]
[1769430148445,15.55341819,2905.4,2904.3,0.001]
[1769430148651,15.24332667,2905.4,2904.3,0.001]
[1769430148855,14.6929501,2905.4,2904.3,0.001]
[1769430149034,13.35722736,2905.2,2904.3,0.001]
[1769430150953,13.35722736,2905.2,2904.5,0.001]
[1769430152745,1.46929501,2905.3,2904.5,0.001]
[1769430153261,14.82652237,2905.3,2904.5,0.001]
[1769430153423,13.35722736,2905.6,2904.5,0.001]
[1769430153856,13.40024921,2905.5,2904.5,0.001]
[1769430154027,0.002,2905.7,2904.5,0.03207037]
[1769430154233,0.002,2905.7,2904.7,0.03107037]
[1769430154941,0.002,2905.7,2904.8,13.88008739]
[1769430155253,0.04501889,2905.7,2904.9,1.73537643]
[1769430155560,0.002,2905.7,2904.9,1.73537643]
[1769430157502,0.002,2905.7,2904.9,2.59597606]
[1769430159577,0.002,2905.7,2904.9,1.73537643]
[1769430161879,0.002,2905.7,2904.9,2.59598235]
[1769430164595,13.35922736,2905.7,2905.1,0.001]
[1769430164811,1.34022448,2905.6,2905.1,0.001]
[1769430164963,14.69745184,2905.6,2905.1,0.001]
[1769430167093,13.35722736,2905.4,2904.5,0.86172001]
[1769430167251,13.35722736,2905.2,2904.5,0.86172001]
[1769430168094,13.35722736,2905.2,2904.5,0.001]
[1769430168952,12.73892835,2905.5,2904.5,13.00126171]
[1769430169156,12.73892835,2905.5,2904.6,14.30038788]
[1769430170051,14.07915283,2905.6,2904.6,14.30038788]
[1769430170259,1.34022448,2905.6,2904.7,13.86093578]
[1769430170877,14.07915283,2905.6,2904.7,13.00026171]
[1769430171199,14.07915283,2905.6,2904.7,13.72126171]
[1769430171390,12.73892835,2905.4,2904.6,2.16080682]
[1769430171593,12.73892835,2905.3,2904.6,0.86068065]
[1769430171792,14.14704363,2905.5,2904.6,0.86068065]
[1769430173500,12.73892835,2905.4,2904.5,0.001]
[1769430174087,6.42154318,2905.5,2904.3,0.001]
[1769430174088,12.73892835,2905.1,2904.3,0.001]
[1769430176486,12.73892835,2905.1,2904.5,0.001]
[1769430177073,12.7819576,2905.0,2904.5,0.001]
[1769430177274,12.73892835,2905.0,2904.5,0.001]
[1769430178102,0.04303074,2904.9,2904.5,0.001]
[1769430178278,12.78195909,2904.9,2904.5,0.001]
[1769430178478,12.73892835,2904.9,2904.5,0.001]
[1769430179704,0.002,2905.6,2904.8,13.03133208]
[1769430179903,0.04502037,2905.6,2904.9,1.30313321]
[1769430180187,12.74092835,2905.6,2904.6,0.03107037]
[1769430180397,12.7819502,2905.5,2904.6,0.721]
[1769430180677,12.73892835,2905.3,2904.5,0.001]
[1769430180907,12.73892835,2905.1,2904.5,0.001]
[1769430181287,12.7819576,2905.0,2904.5,0.001]
[1769430181486,12.73892835,2905.0,2904.5,0.001]
[1769430182913,12.78195909,2904.9,2904.5,0.001]
[1769430183209,12.73892835,2904.9,2904.5,0.001]
[1769430183913,0.04303222,2904.8,2904.5,0.001]
[1769430189418,12.78196057,2904.8,2904.5,0.001]
[1769430189712,12.73892835,2904.8,2904.7,0.001]
[1769430189928,12.73892835,2904.8,2904.3,0.001]
[1769430189929,13.80001707,2904.8,2904.3,0.001]
[1769430195441,12.78196205,2904.7,2904.3,0.001]
[1769430195641,12.73892835,2904.7,2904.3,0.001]
[1769430197310,0.04303518,2904.6,2904.3,0.001]
[1769430197712,12.73892835,2904.7,2904.3,0.001]
[1769430199218,14.11893006,2904.7,2904.3,0.001]
[1769430200650,1.38000171,2904.7,2904.3,0.001]
[1769430201310,1.38000171,2904.7,2904.5,0.001]
[1769430201513,1.38000171,2904.7,2904.3,0.001]
[1769430202049,15.14393904,2904.7,2904.3,0.001]
[1769430202251,15.10090534,2904.7,2904.3,0.001]
[1769430203248,0.04303518,2904.6,2904.3,0.001]
[1769430204252,15.10090534,2904.7,2904.3,0.001]
[1769430205028,13.72090363,2905.5,2904.3,0.001]
[1769430205219,0.86240875,2905.6,2904.3,0.001]
[1769430205220,13.72090363,2905.3,2904.3,0.001]
[1769430205425,13.72090363,2905.1,2904.3,0.001]
[1769430205645,13.72090363,2904.9,2904.3,0.001]
[1769430205952,13.72090363,2904.7,2904.3,0.001]
[1769430208855,13.72090363,2905.3,2904.3,0.001]
[1769430209031,13.72090363,2905.1,2904.3,0.001]
[1769430209231,13.72090363,2904.9,2904.3,0.001]
[1769430211359,13.76393585,2904.8,2904.3,0.001]
[1769430211539,13.72090363,2904.8,2904.3,0.001]
[1769430211740,0.0430337,2904.7,2904.3,0.001]
[1769430212486,13.76393733,2904.7,2904.3,0.001]
[1769430212760,13.72090363,2904.7,2904.3,0.001]
[1769430212937,13.72090363,2904.7,2904.5,0.001]
[1769430213361,13.72290363,2904.7,2904.5,0.001]
[1769430214238,0.04303518,2904.6,2904.5,0.001]
[1769430216836,13.72290363,2904.7,2904.3,0.001]
[1769430217760,0.002,2904.7,2904.3,0.001]
[1769430225076,0.002,2904.7,2904.5,0.001]
[1769430231179,13.66535037,2904.7,2904.5,0.001]
[1769430231383,13.62231667,2904.7,2904.5,0.001]
[1769430231964,0.002,2904.7,2904.5,0.001]
[1769430232279,0.002,2904.7,2904.3,0.001]
[1769430232280,13.62031667,2904.6,2904.3,0.001]
[1769430232582,0.002,2904.7,2904.3,0.001]
[1769430236882,0.002,2904.7,2904.5,0.001]
[1769430238187,0.002,2904.7,2904.3,0.001]
[1769430242509,0.0450337,2904.7,2904.3,0.001]
[1769430243194,0.002,2904.7,2904.3,0.001]
[1769430243866,13.62031667,2904.6,2904.3,0.001]
[1769430244759,1.36423167,2904.7,2904.3,0.001]
[1769430245386,1.36423167,2904.7,2903.5,3.78]
[1769430245387,13.66335185,2904.6,2903.0,0.02410053]
[1769430245589,13.66335185,2904.6,2903.5,12.20126868]
[1769430245590,13.62031667,2904.6,2903.5,12.20126868]
[1769430245788,13.62031667,2904.6,2903.6,13.76822526]
[1769430246091,0.04303666,2904.5,2903.6,14.65332244]
[1769430246296,0.04303666,2904.5,2903.6,13.79232579]
[1769430246477,0.04303666,2904.5,2903.6,14.65331626]
[1769430246677,0.04303666,2904.5,2903.7,13.66085424]
[1769430247891,13.66335333,2904.5,2903.7,13.66085424]
[1769430248097,13.62031667,2904.5,2903.7,1.46533163]
[1769430248300,0.04303814,2904.4,2903.7,1.46533163]
[1769430248687,0.04303814,2904.4,2903.8,0.001]
[1769430249263,13.66335481,2904.4,2903.8,0.001]
[1769430249482,13.62031667,2904.4,2903.8,0.001]
[1769430255673,0.002,2904.5,2903.8,1.21800605]
[1769430256797,0.002,2904.5,2903.8,2.07894655]
[1769430256999,0.002,2904.5,2903.8,2.07894687]
[1769430257191,0.002,2904.5,2903.8,14.21273358]
[1769430259400,13.61415259,2904.5,2903.8,1.21800605]
[1769430260005,13.61415259,2904.5,2903.8,2.07894224]
[1769430260303,13.61415259,2904.5,2903.8,1.21800605]
[1769430260607,0.002,2904.3,2903.8,2.07893651]
[1769430260994,0.002,2904.3,2903.8,1.21800605]
[1769430262192,0.002,2904.3,2903.8,2.07894612]
[1769430262793,0.002,2904.3,2903.8,1.21800605]
[1769430264281,0.002,2904.3,2903.8,0.001]
[1769430266323,0.002,2904.3,2903.8,0.86194083]
[1769430268010,0.002,2904.5,2904.0,12.10138732]
[1769430268405,0.002,2904.5,2904.0,12.96224562]
[1769430272725,0.002,2904.5,2904.0,12.96324562]
[1769430272927,0.002,2904.3,2904.0,12.96324562]
[1769430273125,0.002,2904.5,2904.1,1.64068263]
[1769430274524,0.002,2904.5,2904.0,0.8618583]
[1769430278956,0.002,2904.5,2904.0,0.001]
[1769430279323,13.61415259,2904.5,2904.0,0.001]
[1769430284256,13.61415259,2904.5,2904.2,0.001]
[1769430284461,0.002,2904.5,2904.2,0.001]
[1769430284656,0.002,2904.3,2904.2,0.001]
[1769430295849,0.002,2904.3,2904.0,0.001]
[1769430295850,12.74904691,2904.3,2904.0,0.001]
[1769430300276,14.0241516,2904.3,2903.6,3.78]
[1769430300576,14.0241516,2904.3,2903.5,0.86101674]
[1769430300969,14.0241516,2904.3,2903.4,5.38614388]
[1769430301178,14.0241516,2904.3,2903.5,0.86102763]
[1769430301680,0.002,2904.5,2903.9,16.03326054]
[1769430301852,0.002,2904.5,2904.0,0.02410053]
[1769430302348,0.002,2904.5,2904.1,0.86085189]
[1769430302555,0.002,2904.5,2904.0,0.88496099]
[1769430304551,0.002,2904.5,2904.0,0.02410053]
[1769430304754,0.002,2904.5,2904.0,2.06270797]
[1769430306079,0.002,2904.5,2904.0,2.92358857]
[1769430306681,0.002,2904.5,2904.0,2.92358806]
[1769430307596,0.002,2904.5,2904.0,0.88498062]
[1769430308787,0.002,2904.5,2904.0,0.86088009]
[1769430308988,0.002,2904.5,2904.2,0.001]
[1769430309392,0.002,2904.3,2904.2,0.001]
[1769430313797,0.002,2904.5,2904.2,0.001]
[1769430315694,12.74904691,2904.7,2904.2,0.001]
[1769430315695,0.002,2904.7,2904.2,0.001]
[1769430315912,12.74704691,2905.5,2904.5,0.02410053]
[1769430316060,12.74704691,2905.5,2904.5,15.96961837]
[1769430316888,12.74704691,2905.5,2904.7,0.02410053]
[1769430317963,12.74704691,2905.5,2904.8,0.86064445]
[1769430318157,12.74704691,2905.5,2904.7,0.88475992]
[1769430318353,12.74704691,2905.5,2904.7,2.9144734]
[1769430319467,0.002,2905.6,2904.8,11.76604094]
[1769430319655,13.59574166,2905.6,2904.8,11.76604094]
[1769430320162,13.59574166,2905.6,2904.9,0.86061482]
[1769430320566,0.002,2905.3,2904.9,0.86061482]
[1769430321070,0.002,2905.3,2905.0,0.43031104]
[1769430322273,0.002,2905.3,2905.1,0.86055557]
[1769430322613,0.002,2905.3,2905.0,3.872633]
[1769430322614,0.002,2905.3,2905.0,1.29087494]
[1769430323988,13.59574166,2905.3,2904.7,2.02971348]
[1769430324190,13.59574166,2905.3,2904.5,1.58171963]
[1769430325996,13.59574166,2905.3,2904.5,1.60582016]
[1769430326605,0.002,2905.3,2904.8,0.02410053]
[1769430327071,0.002,2905.3,2905.0,0.02410053]
[1769430327274,0.002,2905.5,2905.0,0.02410053]
[1769430327491,0.002,2905.5,2905.1,1.17429195]
[1769430327694,0.002,2905.5,2905.2,0.02410053]
[1769430328203,0.002,2905.7,2905.2,11.74091954]
[1769430328705,0.002,2905.7,2905.3,0.86049633]
[1769430329800,0.002,2905.7,2905.2,0.02410053]
[1769430330118,0.002,2905.7,2905.3,0.87953227]
[1769430332580,0.002,2905.7,2905.2,0.02410053]
[1769430332887,0.002,2905.5,2905.2,0.88462148]
[1769430333203,0.002,2905.5,2905.3,0.86049381]
[1769430333405,0.001,2905.5,2905.3,0.86049381]
[1769430334114,0.001,2905.5,2905.2,0.88460765]
[1769430334313,0.001,2905.5,2905.3,0.55011021]
[1769430336430,0.001,2905.5,2905.4,0.02410053]
[1769430336584,0.002,2905.7,2905.4,0.02410053]
[1769430337515,0.002,2905.9,2905.4,0.02410053]
[1769430338727,0.002,2905.9,2905.4,0.88455231]
[1769430338925,0.002,2905.9,2905.4,0.86808562]
[1769430338926,13.59574166,2905.9,2905.4,0.86808562]
[1769430339090,13.59574166,2905.9,2905.4,1.72855181]
[1769430339592,13.59574166,2905.9,2905.4,1.7285517]
[1769430339896,13.59574166,2905.9,2905.3,1.41058391]
[1769430340121,13.59574166,2905.9,2905.4,0.8604667]
[1769430341111,13.59574166,2905.9,2905.3,0.55011021]
[1769430341112,13.59574166,2905.9,2905.3,1.41058342]
[1769430343832,13.59574166,2905.9,2905.4,0.02410053]
[1769430344598,13.59574166,2905.9,2905.6,0.001]
[1769430345042,0.002,2905.7,2905.6,0.001]
[1769430346924,13.59574166,2905.7,2905.6,0.001]
[1769430347345,14.95551583,2905.7,2905.2,3.78]
[1769430347503,14.95551583,2905.7,2904.8,0.86062918]
[1769430348535,14.95551583,2905.7,2904.4,0.88484331]
[1769430348837,14.95551583,2905.7,2904.6,0.02410053]
[1769430349143,14.95551583,2905.7,2904.8,0.02410053]
[1769430349322,12.47788003,2905.5,2904.8,0.02410053]
[1769430350836,12.47788003,2905.5,2904.9,0.86061482]
[1769430351546,12.47788003,2905.5,2904.8,0.88472498]
[1769430354446,12.47788003,2905.5,2904.6,3.44278777]
[1769430354628,12.47788003,2905.5,2904.8,0.86064423]
[1769430354825,13.72586803,2905.5,2904.8,0.86064423]
[1769430355037,13.72586803,2905.5,2904.8,0.86064301]
[1769430355338,13.72586803,2905.5,2904.8,0.86064057]
[1769430355649,13.72586803,2905.5,2904.7,0.88475239]
[1769430356155,13.72586803,2905.5,2904.7,0.02410053]
[1769430356445,12.47788003,2905.3,2904.9,0.001]
[1769430356748,12.47988003,2905.3,2904.9,0.001]
[1769430362359,12.47988003,2905.3,2904.5,3.44291714]
[1769430362360,12.47988003,2905.3,2904.5,0.86073334]
[1769430362549,12.47788003,2905.1,2904.5,0.86073334]
[1769430362861,12.47788003,2905.1,2904.1,3.78]
[1769430363063,12.47788003,2904.9,2904.1,5.36183063]
[1769430363437,12.47788003,2904.9,2904.2,0.8849213]
[1769430363639,12.47788003,2904.9,2904.1,4.66492967]
[1769430364526,12.47788003,2904.9,2904.3,0.02410053]
[1769430365047,12.47788003,2904.9,2904.1,4.66492967]
[1769430365256,12.47788003,2904.9,2904.1,7.25109667]
[1769430365662,12.47788003,2904.9,2904.2,0.02410053]
[1769430365975,12.47788003,2905.2,2904.6,0.02410053]
[1769430367330,0.002,2905.3,2904.6,0.02410053]
[1769430367767,0.002,2905.3,2904.7,0.86067407]
[1769430368064,0.002,2905.3,2904.8,0.45684762]
[1769430369259,0.002,2905.3,2904.8,0.02510053]
[1769430369761,0.002,2905.3,2904.8,0.001]
[1769430370644,0.002,2905.3,2904.8,0.02510053]
[1769430371954,0.002,2905.3,2904.8,0.001]
[1769430372470,12.47988003,2905.3,2904.8,0.001]
[1769430373569,0.002,2905.3,2904.8,0.001]
[1769430373769,0.002,2905.3,2904.8,1.44980894]
[1769430374565,0.002,2905.3,2904.8,2.31043951]
[1769430374949,12.47988003,2905.3,2904.8,2.31043951]
[1769430375148,12.47988003,2905.3,2904.8,0.86163057]
[1769430376769,12.47988003,2905.3,2904.8,0.001]
[1769430378367,13.59607353,2905.2,2904.8,0.001]
[1769430378563,13.55304724,2905.2,2904.8,0.001]
[1769430379172,13.03429473,2905.1,2904.8,0.001]
[1769430379349,0.002,2905.3,2904.4,0.86074285]
[1769430379350,14.29469643,2905.0,2904.4,0.86074285]
[1769430379555,14.29469643,2905.0,2904.3,7.22315344]
[1769430379556,12.99126696,2905.0,2904.3,5.36177869]
[1769430379871,12.99126696,2905.0,2903.7,13.10340525]
[1769430380041,12.99126696,2905.0,2904.2,0.86079975]
[1769430380243,12.99126696,2904.8,2904.2,0.86080808]
[1769430380471,12.99126696,2904.8,2904.3,0.86078817]
[1769430380781,12.99126696,2904.8,2904.3,0.86078985]
[1769430381078,12.99126696,2904.8,2904.1,0.86083168]
[1769430381375,12.99126696,2904.8,2904.1,0.88493221]
[1769430382572,12.99126696,2905.0,2904.3,0.02410053]
[1769430383074,12.99126696,2905.0,2904.3,3.46726163]
[1769430383663,12.99126696,2905.0,2904.3,0.02410053]
[1769430384216,12.99126696,2905.0,2904.3,0.88487883]
[1769430384389,12.99126696,2905.0,2904.4,0.86076183]
[1769430384568,12.99126696,2905.0,2904.4,0.86076214]
[1769430384892,12.99126696,2905.0,2904.3,0.88487702]
[1769430385099,14.29059366,2905.0,2904.3,0.86077649]
[1769430386498,14.29059366,2905.0,2904.2,0.86080185]
[1769430387109,14.29059366,2905.0,2904.1,1.73528668]
[1769430387606,14.29059366,2905.0,2904.1,0.86083554]
[1769430387805,12.99126696,2904.8,2904.0,0.8608733]
[1769430388802,12.99126696,2904.8,2904.1,0.86084722]
[1769430388992,12.99126696,2904.8,2904.0,0.86086477]
[1769430390499,12.99126696,2904.8,2903.9,0.88499255]
[1769430390666,12.99126696,2904.6,2903.9,0.88499255]
[1769430393002,12.99126696,2904.6,2904.3,0.001]
[1769430394492,1.2991267,2904.7,2903.8,0.86094066]
[1769430394493,12.99126696,2904.4,2903.8,0.86094066]
[1769430394696,12.99126696,2904.4,2903.7,0.88505213]
[1769430395401,12.99126696,2904.4,2903.7,0.02410053]
[1769430395611,12.99126696,2904.4,2903.7,0.88504593]
[1769430395997,12.99126696,2904.4,2903.8,0.86093864]
[1769430396209,12.99126696,2904.4,2903.7,0.8850517]
[1769430396417,14.29039366,2904.4,2903.7,0.8850517]
[1769430397729,14.29039366,2904.4,2903.6,0.02410053]
[1769430398412,14.29039366,2904.4,2903.6,0.88509923]
[1769430398598,14.29039366,2904.4,2903.8,0.02410053]
[1769430400199,12.99126696,2904.6,2903.8,0.88502502]
[1769430400516,12.99126696,2904.6,2904.0,0.02410053]
[1769430400695,12.99126696,2904.8,2904.1,0.02410053]
[1769430403817,12.99126696,2904.8,2904.1,0.02410053]
[1769430405316,0.002,2904.6,2904.1,0.02410053]
[1769430410793,0.002,2904.6,2903.9,13.94119258]
[1769430410993,0.002,2904.6,2903.9,16.09748835]
[1769430411190,0.002,2904.6,2904.0,0.02410053]
[1769430412940,0.002,2904.6,2904.1,0.86085189]
[1769430414047,0.002,2904.6,2904.0,0.88496207]
[1769430418845,0.002,2904.6,2904.2,0.001]
[1769430419054,0.002,2904.6,2904.2,1.40131259]
[1769430420367,0.002,2904.6,2904.3,0.88489314]
[1769430421640,0.002,2904.8,2904.3,14.002057]
[1769430421837,0.002,2904.8,2904.5,0.02410053]
[1769430422066,0.002,2904.8,2904.3,14.002057]
[1769430422249,0.002,2904.8,2904.4,1.88466215]
[1769430422569,0.002,2904.8,2904.5,0.02410053]
[1769430424533,0.002,2904.8,2904.5,0.88481643]
[1769430431981,0.002,2904.6,2904.5,0.88481643]
[1769430436283,0.001,2904.6,2904.5,0.88481643]
[1769430436480,0.002,2904.8,2904.5,0.88481643]
[1769430436656,0.002,2904.8,2904.5,1.39211192]
[1769430443790,0.002,2904.6,2904.5,1.39211192]